bitfinex/quotes_SOLUSD_20241110
["timestamp","ask_amount","ask_price","bid_price","bid_amount"]
[1731254559220,10.0,212.23,212.22,26.89241932]
[1731254560341,4.7073,212.44,212.24,20.0]
[1731254560545,4.7073,212.44,212.39,26.89241932]
[1731254560837,4.7073,212.44,212.38,26.89241932]
[1731254561020,4.7073,212.44,212.36,26.89241932]
[1731254561021,39.67429657,212.44,212.36,26.89241932]
[1731254561231,31.59971932,212.44,212.36,26.89241932]
[1731254561626,26.89241932,212.42,212.34,26.89241932]
[1731254561818,4.7073,212.44,212.38,26.89241932]
[1731254562024,4.7073,212.44,212.39,26.89241932]
[1731254562349,26.89241932,212.46,212.39,26.89241932]
[1731254562522,31.59871932,212.48,212.39,26.89241932]
[1731254562734,31.59871932,212.48,212.41,26.89241932]
[1731254563037,31.59871932,212.48,212.32,4.7097]
[1731254563038,31.59871932,212.48,212.4,26.89241932]
[1731254563725,4.7063,212.48,212.44,26.89241932]
[1731254563934,4.7063,212.48,212.42,26.89241932]
[1731254564135,36.89241932,212.46,212.39,26.89241932]
[1731254564541,26.89241932,212.44,212.37,26.89241932]
[1731254564843,26.89241932,212.42,212.34,26.89241932]
[1731254565039,26.89241932,212.41,212.34,26.89241932]
[1731254565245,26.89241932,212.42,212.34,26.89241932]
[1731254565551,36.89241932,212.46,212.39,26.89241932]
[1731254565846,4.7069,212.45,212.39,26.89241932]
[1731254567038,31.59931932,212.45,212.38,26.89241932]
[1731254569131,4.7069,212.45,212.4,26.89241932]
[1731254569446,4.7069,212.45,212.3,26.89241932]
[1731254569447,4.7069,212.45,212.41,26.89241932]
[1731254569636,10.0,212.46,212.44,26.89241932]
[1731254569837,10.0,212.46,212.41,26.89241932]
[1731254569838,10.0,212.46,212.45,26.89241932]
[1731254571034,10.0,212.46,212.41,26.89241932]
[1731254571240,14.7069,212.46,212.41,26.89241932]
[1731254571622,41.59931932,212.46,212.3,6.6644]
[1731254571947,41.59931932,212.46,212.24,0.2]
[1731254571948,26.89241932,212.39,212.32,26.89241932]
[1731254572246,26.89241932,212.38,212.31,26.89241932]
[1731254572447,26.89241932,212.4,212.33,26.89241932]
[1731254573645,4.7083,212.39,212.35,26.89241932]
[1731254573845,4.7083,212.39,212.34,26.89241932]
[1731254574181,31.60071932,212.39,212.32,26.89241932]
[1731254574327,4.7083,212.39,212.33,26.89241932]
[1731254574836,4.7083,212.39,212.34,26.89241932]
[1731254575541,4.7083,212.39,212.33,26.89241932]
[1731254576136,4.7083,212.39,212.24,6.6644]
[1731254576137,26.89241932,212.38,212.25,20.0]
[1731254576337,26.89241932,212.38,212.19,6.7644]
[1731254576338,26.89241932,212.35,212.19,6.7644]
[1731254576544,21.3752,212.38,212.19,26.89241932]
[1731254576545,26.89241932,212.34,212.19,26.89241932]
[1731254576737,26.89241932,212.32,212.24,26.89241932]
[1731254577133,26.89241932,212.3,212.23,26.89241932]
[1731254577349,26.89241932,212.27,212.2,26.89241932]
[1731254577650,4.7112,212.26,212.2,26.89241932]
[1731254577851,4.7112,212.26,212.21,26.89241932]
[1731254578034,4.7112,212.26,212.2,26.89241932]
[1731254578356,26.89241932,212.23,212.14,26.89241932]
[1731254578568,26.89241932,212.21,212.14,26.89241932]
[1731254578849,26.89241932,212.19,212.06,4.90251981]
[1731254579151,26.89241932,212.19,211.99,0.1]
[1731254579152,26.89241932,212.18,212.1,26.89241932]
[1731254579332,26.89241932,212.18,212.11,26.89241932]
[1731254579527,26.89241932,212.18,212.01,0.1]
[1731254579528,4.7132,212.17,212.01,0.1]
[1731254579729,4.7132,212.17,212.11,26.89241932]
[1731254580929,26.89241932,212.19,212.11,26.89241932]
[1731254581128,26.89241932,212.18,211.98,0.1]
[1731254581357,26.89241932,212.15,212.08,26.89241932]
[1731254581544,26.89241932,212.16,212.08,26.89241932]
[1731254582556,4.7125,212.2,212.13,26.89241932]
[1731254582850,4.7125,212.2,212.14,26.89241932]
[1731254583035,4.7125,212.2,212.15,26.89241932]
[1731254583433,31.60491932,212.2,212.13,26.89241932]
[1731254584036,31.60491932,212.2,212.08,26.89241932]
[1731254584037,4.7125,212.2,212.14,26.89241932]
[1731254584355,4.7125,212.2,212.16,26.89241932]
[1731254584539,31.60491932,212.2,212.13,26.89241932]
[1731254586055,26.89241932,212.19,212.12,26.89241932]
[1731254586255,31.60491932,212.2,212.13,26.89241932]
[1731254586561,4.7125,212.2,212.14,26.89241932]
[1731254586748,4.7125,212.2,212.15,26.89241932]
[1731254586944,4.7125,212.2,212.03,16.6069]
[1731254586945,26.89241932,212.17,212.1,26.89241932]
[1731254587353,26.89241932,212.18,212.1,26.89241932]
[1731254587662,26.89241932,212.17,212.09,26.89241932]
[1731254587952,26.89241932,212.17,212.1,26.89241932]
[1731254588154,24.4594536,212.2,211.99,16.51]
[1731254588155,26.89241932,212.18,212.11,26.89241932]
[1731254588350,31.60601932,212.15,212.07,26.89241932]
[1731254588533,26.89241932,212.14,212.06,26.89241932]
[1731254589747,26.89241932,212.11,212.04,26.89241932]
[1731254589959,26.89241932,212.05,211.94,11.7956]
[1731254590247,22.7624,212.12,211.94,11.7956]
[1731254590248,26.89241932,212.09,211.94,11.7956]
[1731254590444,22.7624,212.12,212.03,26.89241932]
[1731254590656,22.7624,212.12,211.94,11.7956]
[1731254591248,10.0,212.3,212.16,0.1]
[1731254591439,10.0,212.3,212.18,20.0]
[1731254591639,10.0,212.3,212.28,26.89241932]
[1731254592246,10.0,212.3,212.26,26.89241932]
[1731254593044,10.0,212.3,212.28,26.89241932]
[1731254595052,10.0,212.3,212.28,26.89241932]
[1731254596652,10.0,212.3,212.29,26.89241932]
[1731254597859,10.0,212.3,212.27,26.89241932]
[1731254598063,10.0,212.3,212.29,26.89241932]
[1731254598269,10.0,212.3,212.29,46.89241932]
[1731254598454,10.0,212.3,212.29,73.78483864]
[1731254598846,10.0,212.3,212.29,80.11303864]
[1731254599365,9.8746,212.3,212.29,80.21303864]
[1731254599567,9.8746,212.3,212.29,80.31303864]
[1731254599750,9.8746,212.3,212.29,80.11303864]
[1731254600155,9.8746,212.3,212.29,26.89241932]
[1731254600352,9.8746,212.3,212.29,53.78483864]
[1731254601367,9.7492,212.3,212.29,73.78483864]
[1731254601757,9.7492,212.3,212.29,20.0]
[1731254601974,9.7492,212.3,212.29,73.78483864]
[1731254602768,4.707,212.45,212.3,36.486]
[1731254602971,4.707,212.45,212.4,26.89241932]
[1731254603148,4.707,212.45,212.39,26.89241932]
[1731254603571,4.707,212.45,212.4,26.89241932]
[1731254604372,16.2047,212.46,212.43,26.89241932]
[1731254604569,26.89241932,212.45,212.38,26.89241932]
[1731254604753,16.2047,212.46,212.39,26.89241932]
[1731254604754,47.80391932,212.46,212.39,26.89241932]
[1731254605155,16.2047,212.46,212.36,16.4812]
[1731254605477,16.2047,212.46,212.42,26.89241932]
[1731254606275,10.0,212.46,212.42,26.89241932]
[1731254606469,10.0,212.46,212.43,26.89241932]
[1731254607055,10.0,212.46,212.45,26.89241932]
[1731254607850,10.0,212.46,212.34,0.1]
[1731254607851,10.0,212.46,212.34,20.0]
[1731254608075,10.0,212.46,212.4,26.89241932]
[1731254608272,10.0,212.46,212.41,26.89241932]
[1731254609762,10.0,212.46,212.43,26.89241932]
[1731254610260,10.0,212.46,212.45,26.89241932]
[1731254610764,10.0,212.46,212.44,26.89241932]
[1731254610963,10.0,212.46,212.42,26.89241932]
[1731254611163,10.0,212.46,212.41,26.89241932]
[1731254611364,26.89241932,212.45,212.38,26.89241932]
[1731254611571,14.7068,212.46,212.4,26.89241932]
[1731254612485,14.7068,212.46,212.33,16.4837]
[1731254612486,26.89241932,212.43,212.36,26.89241932]
[1731254612774,26.89241932,212.42,212.35,26.89241932]
[1731254612977,14.7068,212.46,212.25,18.810484]
[1731254612978,26.89241932,212.4,212.25,18.810484]
[1731254613274,26.89241932,212.41,212.34,26.89241932]
[1731254613480,26.89241932,212.43,212.35,26.89241932]
[1731254613679,26.89241932,212.42,212.35,26.89241932]
[1731254614475,31.59931932,212.45,212.38,26.89241932]
[1731254614857,26.89241932,212.44,212.37,26.89241932]
[1731254615170,4.7069,212.45,212.31,16.4852]
[1731254615171,26.89241932,212.41,212.34,26.89241932]
[1731254615374,26.89241932,212.44,212.37,26.89241932]
[1731254615566,10.0,212.43,212.37,26.89241932]
[1731254616452,4.7076,212.42,212.37,26.89241932]
[1731254617166,4.7076,212.42,212.36,26.89241932]
[1731254617669,4.7076,212.42,212.37,26.89241932]
[1731254617878,4.7076,212.42,212.36,26.89241932]
[1731254618054,4.7076,212.42,212.35,26.89241932]
[1731254618677,4.7076,212.42,212.36,26.89241932]
[1731254618867,4.7076,212.42,212.35,26.89241932]
[1731254619369,4.7076,212.42,212.33,4.7094]
[1731254619370,4.7076,212.42,212.36,26.89241932]
[1731254619579,10.0,212.43,212.37,26.89241932]
[1731254619756,10.0,212.43,212.39,26.89241932]
[1731254619960,10.0,212.43,212.38,26.89241932]
[1731254620361,14.7075,212.43,212.38,26.89241932]
[1731254621383,14.7075,212.43,212.33,11.7741]
[1731254621384,10.0,212.43,212.41,26.89241932]
[1731254621562,10.0,212.43,212.42,26.89241932]
[1731254621976,10.0,212.43,212.41,16.4772]
[1731254622280,10.0,212.43,212.41,26.89241932]
[1731254622461,10.0,212.43,212.42,26.89241932]
[1731254624756,10.0,212.43,212.4,4.708]
[1731254624757,10.0,212.43,212.38,26.89241932]
[1731254624980,14.7074,212.43,212.37,26.89241932]
[1731254625170,41.59981932,212.43,212.35,26.89241932]
[1731254625680,26.89241932,212.37,212.2,0.1]
[1731254625873,26.89241932,212.35,212.28,26.89241932]
[1731254626180,26.89241932,212.3,212.23,26.89241932]
[1731254626376,26.89241932,212.31,212.24,26.89241932]
[1731254626576,26.89241932,212.3,212.23,26.89241932]
[1731254627083,26.89241932,212.3,212.22,11.7802]
[1731254627084,26.89241932,212.31,212.24,26.89241932]
[1731254627277,42.88151932,212.3,212.23,26.89241932]
[1731254627781,20.6995,212.3,212.24,26.89241932]
[1731254628367,26.89241932,212.25,212.1,0.1]
[1731254628679,26.89241932,212.24,212.17,26.89241932]
[1731254628885,26.89241932,212.22,212.14,26.89241932]
[1731254629258,26.89241932,212.2,212.13,26.89241932]
[1731254629659,26.89241932,212.2,212.12,26.89241932]
[1731254629871,26.89241932,212.2,212.13,26.89241932]
[1731254630190,26.89241932,212.17,212.09,26.89241932]
[1731254630362,26.89241932,212.16,212.09,26.89241932]
[1731254630777,26.89241932,212.16,212.06,4.7155]
[1731254630778,26.89241932,212.16,212.08,26.89241932]
[1731254631087,26.89241932,212.16,212.09,26.89241932]
[1731254631284,33.15161932,212.17,212.1,26.89241932]
[1731254631492,37.86491932,212.17,212.1,26.89241932]
[1731254631790,10.9725,212.17,212.1,26.89241932]
[1731254632285,6.2592,212.17,212.14,26.89241932]
[1731254632469,15.9891,212.18,212.15,26.89241932]
[1731254632787,15.9891,212.18,212.12,26.89241932]
[1731254634393,15.9891,212.18,212.13,26.89241932]
[1731254635173,15.9891,212.18,212.14,26.89241932]
[1731254635777,42.88151932,212.18,212.11,26.89241932]
[1731254635973,26.89241932,212.17,212.1,26.89241932]
[1731254636292,26.89241932,212.15,212.08,26.89241932]
[1731254636798,26.89241932,212.16,212.08,26.89241932]
[1731254637169,4.7134,212.16,212.1,26.89241932]
[1731254638995,4.7134,212.16,212.11,26.89241932]
[1731254639377,31.60581932,212.16,212.09,26.89241932]
[1731254639687,31.60581932,212.16,212.02,20.0]
[1731254639688,4.7134,212.16,212.1,26.89241932]
[1731254639888,4.7134,212.16,212.09,26.89241932]
[1731254639889,31.60581932,212.16,212.09,26.89241932]
[1731254641715,31.60581932,212.16,212.06,4.7155]
[1731254641716,26.89241932,212.13,212.06,4.7155]
[1731254641989,31.60631932,212.14,212.06,31.60791932]
[1731254642872,31.60631932,212.14,212.07,26.89241932]
[1731254643070,15.9891,212.18,212.08,26.89241932]
[1731254643268,26.89241932,212.15,212.07,26.89241932]
[1731254643474,26.89241932,212.13,212.06,26.89241932]
[1731254643788,26.89241932,212.14,212.07,26.89241932]
[1731254644377,26.89241932,212.08,212.01,26.89241932]
[1731254645179,26.89241932,212.06,211.99,26.89241932]
[1731254645379,20.7045,212.07,211.93,45.73315432]
[1731254645380,26.89241932,212.0,211.93,45.73315432]
[1731254645591,26.89241932,211.98,211.93,18.840735]
[1731254645900,26.89241932,211.97,211.9,26.89241932]
[1731254646192,26.89241932,211.96,211.89,26.89241932]
[1731254646894,26.89241932,211.97,211.9,26.89241932]
[1731254647599,6.4544,211.98,211.87,11.7993]
[1731254647600,26.89241932,211.95,211.88,16.89241932]
[1731254647886,15.4879,211.94,211.88,16.89241932]
[1731254648093,15.4879,211.94,211.89,26.89241932]
[1731254648282,15.4879,211.94,211.9,26.89241932]
[1731254648486,15.4879,211.94,211.91,26.89241932]
[1731254648693,15.4879,211.94,211.89,26.89241932]
[1731254648874,47.09871932,211.94,211.87,26.89241932]
[1731254649075,20.2063,211.94,211.88,26.89241932]
[1731254649290,26.89241932,211.93,211.87,26.89241932]
[1731254649599,47.09871932,211.94,211.87,26.89241932]
[1731254650306,47.09871932,211.94,211.87,16.89241932]
[1731254650478,20.2063,211.94,211.88,26.89241932]
[1731254650676,26.89241932,211.92,211.85,26.89241932]
[1731254650889,26.89241932,211.91,211.85,26.89241932]
[1731254651097,26.89241932,211.9,211.83,26.89241932]
[1731254651298,26.89241932,211.87,211.81,26.89241932]
[1731254651488,26.89241932,211.87,211.8,26.89241932]
[1731254651685,26.89241932,211.87,211.78,4.7218]
[1731254651686,4.7184,211.94,211.86,26.89241932]
[1731254651885,0.1,212.25,211.86,26.89241932]
[1731254651886,26.89241932,212.15,211.96,4.3865]
[1731254652188,6.4544,212.23,212.01,0.1]
[1731254652396,26.89241932,212.19,212.11,26.89241932]
[1731254652596,8.71193801,212.21,212.17,26.89241932]
[1731254652805,18.837438,212.25,212.21,20.0]
[1731254653111,6.4544,212.38,212.25,20.1]
[1731254653283,15.4879,212.39,212.34,26.89241932]
[1731254654201,15.4879,212.39,212.36,26.89241932]
[1731254654496,15.4879,212.39,212.31,20.0]
[1731254654497,26.89241932,212.43,212.35,26.89241932]
[1731254654800,26.89241932,212.43,212.32,11.7745]
[1731254654801,33.34681932,212.47,212.41,26.89241932]
[1731254654983,6.4544,212.47,212.41,26.89241932]
[1731254655699,6.4544,212.47,212.33,20.0]
[1731254655907,6.4544,212.47,212.41,26.89241932]
[1731254656734,6.4544,212.47,212.37,4.7086]
[1731254657008,6.4544,212.47,212.4,26.89241932]
[1731254657178,6.4544,212.47,212.42,26.89241932]
[1731254657682,6.4544,212.47,212.41,26.89241932]
[1731254658483,26.89241932,212.43,212.35,26.89241932]
[1731254658703,6.4544,212.47,212.39,26.89241932]
[1731254658704,33.34681932,212.47,212.39,26.89241932]
[1731254658899,26.89241932,212.45,212.37,26.89241932]
[1731254659100,26.89241932,212.45,212.38,26.89241932]
[1731254659597,26.89241932,212.45,212.37,26.89241932]
[1731254660103,10.0,212.46,212.36,4.7089]
[1731254660300,26.89241932,212.45,212.38,26.89241932]
[1731254660509,26.89241932,212.45,212.37,26.89241932]
[1731254660708,10.0,212.46,212.4,26.89241932]
[1731254661204,26.89241932,212.43,212.3,0.1]
[1731254661505,26.89241932,212.43,212.35,26.89241932]
[1731254661710,26.89241932,212.41,212.27,18.811453]
[1731254661903,26.89241932,212.38,212.31,26.89241932]
[1731254662083,0.1,212.44,212.3,11.7757]
[1731254662292,26.89241932,212.35,212.28,26.89241932]
[1731254662485,26.89241932,212.35,212.27,26.89241932]
[1731254662710,26.89241932,212.34,212.26,26.89241932]
[1731254663018,26.89241932,212.35,212.27,26.89241932]
[1731254663299,26.89241932,212.34,212.26,26.89241932]
[1731254663690,26.89241932,212.33,212.26,26.89241932]
[1731254663903,26.89241932,212.3,212.24,11.779]
[1731254664315,26.89241932,212.3,212.22,31.60431932]
[1731254664800,26.89241932,212.23,212.11,11.7859]
[1731254665107,26.89241932,212.2,212.13,26.89241932]
[1731254665812,26.89241932,212.22,212.15,26.89241932]
[1731254665991,26.89241932,212.24,212.15,26.89241932]
[1731254666490,26.89241932,212.22,212.15,26.89241932]
[1731254667003,26.89241932,212.2,212.12,43.39241932]
[1731254667208,26.89241932,212.2,212.12,26.89241932]
[1731254667397,26.89241932,212.17,212.09,26.89241932]
[1731254667607,26.89241932,212.22,212.14,26.89241932]
[1731254667897,26.89241932,212.19,212.11,26.89241932]
[1731254668103,26.89241932,212.18,212.11,26.89241932]
[1731254668304,26.89241932,212.17,212.07,11.7885]
[1731254668508,26.89241932,212.18,212.07,11.7885]
[1731254668809,26.89241932,212.18,212.11,26.89241932]
[1731254669108,26.89241932,212.34,212.18,20.0]
[1731254669409,26.89241932,212.32,212.24,26.89241932]
[1731254669607,26.89241932,212.32,212.25,23.776884]
[1731254669993,26.89241932,212.32,212.25,13.776884]
[1731254671735,26.89241932,212.27,212.21,11.7803]
[1731254673410,26.89241932,212.23,212.14,26.89241932]
[1731254673600,26.89241932,212.21,212.13,26.89241932]
[1731254674008,26.89241932,212.2,212.12,26.89241932]
[1731254674309,26.89241932,212.22,212.14,26.89241932]
[1731254674516,26.89241932,212.22,212.15,26.89241932]
[1731254675008,26.89241932,212.22,212.11,20.0]
[1731254675207,26.89241932,212.22,212.16,23.776884]
[1731254675597,26.89241932,212.23,212.16,23.776884]
[1731254677016,26.89241932,212.25,212.18,23.776884]
[1731254677213,4.711,212.27,212.18,23.776884]
[1731254677214,26.89241932,212.24,212.18,23.776884]
[1731254677399,26.89241932,212.23,212.18,23.776884]
[1731254677603,26.89241932,212.22,212.18,23.776884]
[1731254677805,26.89241932,212.21,212.18,23.776884]
[1731254678003,26.89241932,212.19,212.12,38.67801932]
[1731254678319,26.89241932,212.21,212.14,26.89241932]
[1731254678815,4.7116,212.24,212.14,26.89241932]
[1731254679014,26.89241932,212.21,212.14,26.89241932]
[1731254679235,26.89241932,212.23,212.15,26.89241932]
[1731254679721,31.60401932,212.24,212.18,23.776884]
[1731254679899,4.7116,212.24,212.18,23.776884]
[1731254680101,31.60401932,212.24,212.18,23.776884]
[1731254680296,26.89241932,212.2,212.13,11.7852]
[1731254680597,26.89241932,212.2,212.14,23.776884]
[1731254681620,26.89241932,212.21,212.16,23.776884]
[1731254682114,26.89241932,212.17,212.08,11.7879]
[1731254682295,26.89241932,212.2,212.13,26.89241932]
[1731254682813,26.89241932,212.21,212.13,26.89241932]
[1731254683208,26.89241932,212.22,212.14,26.89241932]
[1731254683618,31.60451932,212.22,212.15,23.776884]
[1731254683923,4.7117,212.24,212.18,26.89241932]
[1731254684120,15.7911,212.25,212.19,23.776884]
[1731254684613,26.89241932,212.2,212.06,4.7156]
[1731254684918,26.89241932,212.19,212.11,26.89241932]
[1731254685115,26.89241932,212.17,212.09,26.89241932]
[1731254685324,26.89241932,212.17,212.09,38.67941932]
[1731254685522,26.89241932,212.17,212.1,26.89241932]
[1731254685814,31.60541932,212.18,212.11,26.89241932]
[1731254686399,31.60541932,212.18,212.12,23.776884]
[1731254686711,26.89241932,212.2,212.12,28.490984]
[1731254687102,26.89241932,212.19,212.12,28.490984]
[1731254687499,26.89241932,212.2,212.12,55.38340332]
[1731254687912,0.8146109,212.3,212.17,20.0]
[1731254688220,0.8146109,212.3,212.25,23.776884]
[1731254688525,26.89241932,212.3,212.23,23.776884]
[1731254688703,26.89241932,212.3,212.23,50.66930332]
[1731254689506,4.7097,212.33,212.26,23.776884]
[1731254691010,26.89241932,212.32,212.26,23.776884]
[1731254691314,31.60231932,212.32,212.26,23.776884]
[1731254691821,26.89241932,212.3,212.24,23.776884]
[1731254692906,26.89241932,212.31,212.24,23.776884]
[1731254693700,26.89241932,212.31,212.24,50.66930332]
[1731254694526,31.60251932,212.31,212.24,50.66930332]
[1731254696306,31.60251932,212.31,212.24,55.38090332]
[1731254697315,26.89241932,212.31,212.24,28.488484]
[1731254697512,26.89241932,212.31,212.24,55.38090332]
[1731254697714,26.89241932,212.31,212.18,23.5643]
[1731254697715,26.89241932,212.28,212.21,26.89241932]
[1731254697921,26.89241932,212.27,212.2,4.7124]
[1731254698122,26.89241932,212.26,212.2,4.7124]
[1731254698324,26.89241932,212.25,212.18,43.38721932]
[1731254699117,26.89241932,212.26,212.19,26.89241932]
[1731254699420,26.89241932,212.2,212.1,26.89241932]
[1731254699621,26.89241932,212.17,212.1,26.89241932]
[1731254700129,26.89241932,212.18,212.11,26.89241932]
[1731254700327,26.89241932,212.18,212.01,0.1]
[1731254700328,26.89241932,212.14,212.07,31.60781932]
[1731254700511,26.89241932,212.11,212.04,38.68211932]
[1731254700712,26.89241932,212.1,212.04,11.7897]
[1731254700911,26.89241932,212.12,212.04,38.68211932]
[1731254701318,26.89241932,212.08,211.93,40.1074]
[1731254701525,26.89241932,212.06,211.99,26.89241932]
[1731254701824,26.89241932,212.04,211.97,26.89241932]
[1731254702020,0.1,212.12,211.93,21.36048104]
[1731254702021,26.89241932,212.0,211.93,43.40721932]
[1731254702235,26.89241932,211.99,211.93,11.7963]
[1731254702417,26.89241932,212.01,211.93,38.68871932]
[1731254702622,26.89241932,212.02,211.95,26.89241932]
[1731254702804,26.89241932,212.01,211.94,26.89241932]
[1731254703010,26.89241932,212.0,211.93,38.68871932]
[1731254703327,26.89241932,211.94,211.87,38.69171932]
[1731254703524,26.89241932,211.93,211.87,11.7993]
[1731254703725,26.89241932,211.93,211.78,6.3871]
[1731254703726,26.89241932,211.91,211.84,26.89241932]
[1731254703926,26.89241932,211.9,211.83,26.89241932]
[1731254704511,56.89241932,211.92,211.85,26.89241932]
[1731254704721,26.89241932,211.91,211.84,26.89241932]
[1731254704917,26.89241932,211.88,211.81,38.69501932]
[1731254705318,30.0,211.92,211.84,26.89241932]
[1731254705319,26.89241932,211.91,211.84,26.89241932]
[1731254705518,30.0,211.92,211.86,26.89241932]
[1731254705825,26.89241932,211.9,211.83,26.89241932]
[1731254706038,26.89241932,211.88,211.82,11.8024]
[1731254706323,26.89241932,211.88,211.82,11.33355791]
[1731254707026,26.89241932,211.91,211.84,26.89241932]
[1731254707235,26.89241932,211.93,211.86,26.89241932]
[1731254707413,7.84990096,211.97,211.87,26.89241932]
[1731254707611,0.1,211.92,211.67,11.8104]
[1731254707829,0.1,211.89,211.67,11.8104]
[1731254708022,6.1382,211.93,211.69,0.1]
[1731254708326,6.1382,211.93,211.68,4.94745756]
[1731254708327,6.0382,211.93,211.71,0.1]
[1731254708628,26.89241932,211.86,211.71,0.1]
[1731254708832,26.89241932,211.84,211.76,26.89241932]
[1731254709127,26.89241932,211.82,211.74,26.89241932]
[1731254709827,26.89241932,211.8,211.74,26.89241932]
[1731254710131,26.89241932,211.8,211.72,26.89241932]
[1731254710316,26.89241932,211.8,211.72,31.61551932]
[1731254710710,26.89241932,211.75,211.69,43.42581932]
[1731254711328,26.89241932,211.75,211.69,11.8097]
[1731254712009,4.8203,211.85,211.69,11.8097]
[1731254712010,26.89241932,211.85,211.74,26.89241932]
[1731254712333,26.89241932,211.84,211.76,26.89241932]
[1731254712534,26.89241932,211.8,211.74,11.8064]
[1731254712731,4.7198,211.87,211.74,11.8064]
[1731254712911,4.8198,211.87,211.68,11.8099]
[1731254713116,4.7198,211.87,211.68,11.8099]
[1731254713526,4.7198,211.87,211.69,0.1]
[1731254713923,26.89241932,211.8,211.73,20.0]
[1731254714224,26.89241932,211.8,211.68,11.8099]
[1731254714225,26.89241932,211.79,211.71,26.89241932]
[1731254714422,26.89241932,211.79,211.71,31.61561932]
[1731254714941,4.7203,211.85,211.71,4.7232]
[1731254715118,26.89241932,211.78,211.71,4.7232]
[1731254716035,26.89241932,211.77,211.71,4.7232]
[1731254717024,26.89241932,211.78,211.71,4.7232]
[1731254717320,26.89241932,211.76,211.7,20.0]
[1731254718634,26.89241932,211.76,211.7,4.7235]
[1731254719039,26.89241932,211.77,211.7,31.61591932]
[1731254719227,26.89241932,211.76,211.7,4.7235]
[1731254719433,26.89241932,211.75,211.7,4.7235]
[1731254719622,26.89241932,211.76,211.7,4.7235]
[1731254720740,26.89241932,211.77,211.7,4.7235]
[1731254721147,26.89241932,211.78,211.71,26.89241932]
[1731254721347,26.89241932,211.77,211.7,43.42501932]
[1731254721530,26.89241932,211.76,211.7,16.5326]
[1731254721839,26.89241932,211.75,211.7,16.5326]
[1731254722048,26.89241932,211.76,211.7,16.5326]
[1731254722636,26.89241932,211.77,211.7,43.42501932]
[1731254724847,26.89241932,211.71,211.65,16.5364]
[1731254725015,6.0382,211.77,211.65,16.5364]
[1731254725016,26.89241932,211.72,211.65,43.42881932]
[1731254725222,26.89241932,211.66,211.58,26.89241932]
[1731254725434,26.89241932,211.68,211.61,26.89241932]
[1731254725629,6.0382,211.77,211.6,0.1]
[1731254725838,4.7219,211.78,211.63,0.1]
[1731254726046,10.9921,211.84,211.67,0.1]
[1731254726250,10.9921,211.84,211.65,6.2805]
[1731254726425,22.7934,211.84,211.65,6.2805]
[1731254726750,26.89241932,211.74,211.67,46.89241932]
[1731254727250,26.89241932,211.75,211.68,26.89241932]
[1731254727630,26.89241932,211.76,211.68,26.89241932]
[1731254727829,26.89241932,211.76,211.69,16.5335]
[1731254728232,4.722,211.78,211.69,16.5335]
[1731254728548,26.89241932,211.75,211.69,16.5335]
[1731254728963,26.89241932,211.74,211.69,16.5335]
[1731254729639,26.89241932,211.75,211.69,16.5335]
[1731254730238,26.89241932,211.76,211.69,16.5335]
[1731254731223,26.89241932,211.79,211.72,26.89241932]
[1731254731423,26.89241932,211.8,211.73,26.89241932]
[1731254731627,26.89241932,211.79,211.72,26.89241932]
[1731254732336,26.89241932,211.74,211.67,26.89241932]
[1731254733250,26.89241932,211.7,211.64,4.7248]
[1731254733434,26.89241932,211.68,211.64,4.7248]
[1731254733642,26.89241932,211.69,211.64,4.7248]
[1731254733945,26.89241932,211.7,211.64,4.7248]
[1731254734137,26.89241932,211.7,211.63,26.89241932]
[1731254735148,4.7227,211.74,211.62,11.8136]
[1731254735149,26.89241932,211.68,211.62,11.8136]
[1731254735329,26.89241932,211.69,211.62,16.539]
[1731254735658,26.89241932,211.69,211.61,26.89241932]
[1731254735659,26.89241932,211.65,211.6,4.7258]
[1731254735839,26.89241932,211.63,211.58,4.7261]
[1731254736036,26.89241932,211.63,211.57,11.816]
[1731254736243,26.89241932,211.64,211.57,16.5425]
[1731254738245,26.89241932,211.64,211.57,43.43491932]
[1731254739171,26.89241932,211.64,211.57,38.70841932]
[1731254739331,26.89241932,211.59,211.53,4.7274]
[1731254739530,26.89241932,211.6,211.53,31.61981932]
[1731254739750,26.89241932,211.62,211.55,26.89241932]
[1731254739954,26.89241932,211.63,211.55,26.89241932]
[1731254740355,26.89241932,211.64,211.57,26.89241932]
[1731254740658,4.7238,211.69,211.53,16.546]
[1731254740659,26.89241932,211.61,211.54,20.0]
[1731254740847,26.89241932,211.61,211.54,46.89241932]
[1731254741239,26.89241932,211.61,211.55,4.727]